[Event "XVI Open Internacional Villa de Ibi"]
[Site "Ibi, Spain"]
[Date "2018.09.09"]
[Round "4.4"]
[White "Garcia, Jhoel"]
[Black "Serarols Mabras, Bernat"]
[Result "0-1"]
[TimeControl "15' + 2'' por jugada"]
[WhiteElo "2250"]
[BlackElo "2367"]

1. e4 {[%clk 00:15:01]} {[%emt 00:00:19]} c6 {[%clk 00:15:01]} 2. d4 {[%clk
00:14:58]} d5 {[%clk 00:14:58]} 3. exd5 {[%clk 00:14:48]} {[%emt 00:00:03]}
cxd5 {[%clk 00:14:57]} {[%emt 00:00:03]} 4. c3 {[%clk 00:14:47]} Nc6 {[%clk
00:14:54]} {[%emt 00:00:14]} 5. Bd3 {[%clk 00:14:44]} Qc7 {[%clk 00:14:27]}
{[%emt 00:00:26]} 6. Ne2 {[%clk 00:14:10]} {[%emt 00:00:34]} Bg4 {[%clk
00:14:24]} {[%emt 00:00:07]} 7. f3 {[%clk 00:14:00]} {[%emt 00:00:10]} Bd7
{[%clk 00:14:24]} {[%emt 00:00:34]} 8. Qb3 {[%clk 00:14:01]} Nf6 {[%clk
00:14:03]} {[%emt 00:00:04]} 9. Bf4 {[%clk 00:13:59]} e5 {[%clk 00:13:25]}
{[%emt 00:00:33]} 10. Bg5 {[%clk 00:09:04]} {[%emt 00:04:56]} Be7 {[%clk
00:10:06]} {[%emt 00:03:21]} 11. Na3 {[%clk 00:08:02]} {[%emt 00:01:07]} Na5
{[%clk 00:08:56]} {[%emt 00:01:20]} 12. Qc2 {[%clk 00:07:20]} {[%emt 00:00:33]}
a6 {[%clk 00:07:09]} {[%emt 00:01:50]} 13. dxe5 {[%clk 00:06:43]} {[%emt
00:00:40]} Qxe5 {[%clk 00:07:06]} {[%emt 00:00:36]} 14. Bf4 {[%clk 00:06:40]}
Qe6 {[%clk 00:06:06]} {[%emt 00:00:35]} 15. O-O {[%clk 00:06:20]} {[%emt
00:00:35]} O-O {[%clk 00:05:47]} {[%emt 00:00:15]} 16. b4 {[%clk 00:04:49]}
{[%emt 00:01:27]} Qb6+ {[%clk 00:05:48]} 17. Kh1 {[%clk 00:04:33]} {[%emt
00:00:49]} Nc6 {[%clk 00:05:38]} {[%emt 00:00:04]} 18. Rab1 {[%clk 00:04:05]}
{[%emt 00:00:07]} Rac8 {[%clk 00:05:37]} {[%emt 00:00:17]} 19. Qd2 {[%clk
00:04:03]} Be6 {[%clk 00:04:35]} {[%emt 00:01:03]} 20. Nc2 {[%clk 00:03:58]}
{[%emt 00:00:04]} Rfd8 {[%clk 00:04:30]} {[%emt 00:00:04]} 21. a4 {[%clk
00:03:53]} {[%emt 00:00:07]} Bd6 {[%clk 00:04:19]} {[%emt 00:00:13]} 22. Bg5
{[%clk 00:03:08]} {[%emt 00:01:22]} Be7 {[%clk 00:04:14]} 23. Ned4 {[%clk
00:02:21]} {[%emt 00:00:28]} Ne5 {[%clk 00:03:20]} {[%emt 00:00:46]} 24. Nxe6
{[%clk 00:02:19]} {[%emt 00:00:36]} fxe6 {[%clk 00:03:15]} 25. Nd4 {[%clk
00:02:16]} {[%emt 00:00:10]} Nxd3 {[%clk 00:01:57]} {[%emt 00:00:48]} 26. Qxd3
{[%clk 00:02:17]} {[%emt 00:00:10]} e5 {[%clk 00:01:58]} 27. Nf5 {[%clk
00:02:16]} {[%emt 00:00:07]} Bf8 {[%clk 00:01:58]} 28. Rbe1 {[%clk 00:01:55]}
{[%emt 00:00:17]} Qc7 {[%clk 00:01:42]} {[%emt 00:00:14]} 29. Rc1 {[%clk
00:01:25]} {[%emt 00:00:32]} Qc6 {[%clk 00:01:17]} {[%emt 00:00:27]} 30. Qe3
{[%clk 00:01:08]} {[%emt 00:00:23]} Re8 {[%clk 00:01:09]} {[%emt 00:00:07]} 31.
a5 {[%clk 00:00:55]} {[%emt 00:00:14]} Qe6 {[%clk 00:00:55]} {[%emt 00:00:18]}
32. Ng3 {[%clk 00:00:44]} {[%emt 00:00:12]} Rc4 {[%clk 00:00:40]} {[%emt
00:00:16]} 33. Rfe1 {[%clk 00:00:43]} {[%emt 00:00:07]} Rec8 {[%clk 00:00:36]}
{[%emt 00:00:06]} 34. h3 {[%clk 00:00:31]} {[%emt 00:00:12]} Bd6 {[%clk
00:00:28]} {[%emt 00:00:08]} 35. Qd2 {[%clk 00:00:20]} {[%emt 00:00:13]} Qf7
{[%clk 00:00:05]} {[%emt 00:01:03]} 36. Nf5 Bb8 37. Ne3 {[%clk 00:00:18]} R4c6
{[%emt 00:00:03]} 38. Bxf6 {[%clk 00:00:18]} gxf6 39. Qxd5 {[%clk 00:00:17]}
Rxc3 {[%clk 00:00:05]} 40. Rxc3 {[%clk 00:00:15]} Rxc3 {[%clk 00:00:06]} 41.
Qd8+ {[%clk 00:00:16]} Qf8 {[%emt 00:00:09]} 42. Qd7 {[%clk 00:00:15]} Rc7
{[%clk 00:00:08]} 43. Qe6+ {[%clk 00:00:15]} Qf7 {[%clk 00:00:09]} 44. Qg4+
{[%clk 00:00:15]} Qg7 {[%clk 00:00:10]} 45. Nd5 {[%emt 00:00:04]} Qxg4 {[%clk
00:00:08]} 46. Nxf6+ {[%clk 00:00:16]} Kf7 47. Nxg4 {[%clk 00:00:16]} Re7
{[%clk 00:00:07]} {[%emt 00:00:03]} 48. Rd1 {[%clk 00:00:14]} Ke6 {[%clk
00:00:07]} {[%emt 00:00:08]} 49. Nf2 {[%clk 00:00:14]} Bd6 {[%clk 00:00:08]}
{[%emt 00:00:04]} 50. Nd3 {[%clk 00:00:10]} Rc7 {[%clk 00:00:08]} {[%emt
00:00:04]} 51. Re1 {[%clk 00:00:07]} {[%emt 00:00:03]} Rc4 {[%clk 00:00:10]} 52.
f4 {[%clk 00:00:07]} e4 {[%clk 00:00:10]} {[%emt 00:00:13]} 53. Nf2 {[%clk
00:00:08]} Kd5 {[%clk 00:00:11]} 54. Rd1+ {[%clk 00:00:09]} Rd4 {[%clk
00:00:12]} 55. Rxd4+ {[%clk 00:00:04]} {[%emt 00:00:04]} Kxd4 56. f5 {[%clk
00:00:05]} Bxb4 {[%clk 00:00:13]} {[%emt 00:00:04]} 57. Ng4 {[%clk 00:00:04]}
Bxa5 {[%clk 00:00:13]} {[%emt 00:00:15]} 58. Kg1 {[%clk 00:00:05]} Bb4 {[%clk
00:00:14]} 59. f6 {[%clk 00:00:05]} a5 {[%clk 00:00:14]} {Bandera} 0-1

[Event "XVI Open Internacional Villa de Ibi"]
[Site "Ibi, Spain"]
[Date "2018.09.09"]
[Round "4.5"]
[White "Giaccio, Alfredo"]
[Black "Torres Sanchez, Jose"]
[Result "1-0"]
[TimeControl "15' + 2'' por jugada"]
[WhiteElo "2442"]
[BlackElo "2290"]

1. e4 {[%clk 00:15:01]} {[%emt 00:00:21]} c5 {[%clk 00:15:01]} 2. Nf3 {[%clk
00:15:01]} e6 {[%clk 00:14:55]} 3. d4 {[%clk 00:15:00]} {[%emt 00:00:04]} cxd4
{[%clk 00:14:50]} {[%emt 00:00:12]} 4. Nxd4 {[%clk 00:14:59]} Nc6 {[%clk
00:14:47]} 5. Nc3 {[%clk 00:14:58]} {[%emt 00:00:08]} Qc7 {[%clk 00:14:44]}
{[%emt 00:00:11]} 6. Nb3 {[%clk 00:14:57]} Nf6 {[%clk 00:14:32]} {[%emt
00:00:06]} 7. f4 {[%clk 00:14:51]} {[%emt 00:00:09]} d6 {[%clk 00:12:18]}
{[%emt 00:02:34]} 8. Bd3 {[%clk 00:14:47]} a6 {[%clk 00:11:58]} {[%emt
00:00:07]} 9. Qe2 {[%clk 00:14:42]} {[%emt 00:00:31]} Be7 {[%clk 00:11:48]}
{[%emt 00:00:04]} 10. Be3 {[%clk 00:14:40]} b5 {[%clk 00:11:42]} {[%emt
00:00:03]} 11. a4 {[%clk 00:14:39]} b4 {[%clk 00:11:38]} {[%emt 00:00:04]} 12.
Nb1 {[%clk 00:14:39]} {[%emt 00:00:04]} O-O {[%clk 00:11:30]} {[%emt 00:00:16]}
13. N1d2 {[%clk 00:14:38]} e5 {[%clk 00:09:55]} {[%emt 00:01:30]} 14. f5 {[%clk
00:14:20]} {[%emt 00:00:34]} d5 {[%clk 00:09:42]} {[%emt 00:00:08]} 15. O-O
{[%clk 00:14:18]} {[%emt 00:00:04]} Bb7 {[%clk 00:06:39]} {[%emt 00:02:57]} 16.
Kh1 {[%clk 00:09:08]} {[%emt 00:05:20]} Na5 {[%clk 00:04:55]} {[%emt 00:01:42]}
17. Nxa5 {[%clk 00:08:36]} {[%emt 00:00:31]} Qxa5 {[%clk 00:04:55]} {[%emt
00:00:07]} 18. Bg5 {[%clk 00:08:36]} Rfe8 {[%clk 00:04:45]} {[%emt 00:00:13]}
19. Bxf6 {[%clk 00:08:15]} {[%emt 00:00:22]} Bxf6 {[%clk 00:04:45]} {[%emt
00:00:03]} 20. exd5 {[%clk 00:08:15]} e4 {[%clk 00:03:39]} {[%emt 00:01:06]} 21.
Nxe4 {[%clk 00:08:15]} {[%emt 00:00:22]} Qxd5 {[%clk 00:03:40]} 22. Nxf6+
{[%clk 00:07:38]} {[%emt 00:00:21]} gxf6 {[%clk 00:03:40]} {[%emt 00:00:03]} 23.
Qd2 {[%clk 00:05:38]} {[%emt 00:02:24]} Re3 {[%clk 00:03:05]} {[%emt 00:00:13]}
24. Rf2 {[%clk 00:05:38]} {[%emt 00:00:35]} Rae8 {[%clk 00:03:01]} 25. Qxb4
{[%clk 00:05:17]} {[%emt 00:00:06]} Kh8 {[%clk 00:01:39]} {[%emt 00:01:14]} 26.
Rg1 {[%clk 00:05:04]} {[%emt 00:00:14]} Rg8 {[%clk 00:01:19]} {[%emt 00:00:25]}
27. Qb6 {[%clk 00:04:16]} {[%emt 00:00:48]} Re1 {[%clk 00:00:42]} {[%emt
00:00:40]} 28. Qxf6+ {[%clk 00:04:16]} {[%emt 00:00:37]} Rg7 {[%clk 00:00:36]}
29. Rxe1 {[%clk 00:04:16]} 1-0

[Event "XVI Open Internacional Villa de Ibi"]
[Site "Ibi, Spain"]
[Date "2018.09.09"]
[Round "4.6"]
[White "Hassomal Daswani, Birjkumar"]
[Black "Arias Igual, Alejandro"]
[Result "0-1"]
[TimeControl "15' + 2'' por jugada"]
[WhiteElo "1983"]
[BlackElo "2260"]

1. e4 {[%clk 00:15:00]} {[%emt 00:00:37]} c5 {[%clk 00:14:56]} 2. Nc3 {[%clk
00:15:00]} {[%emt 00:00:03]} g6 {[%clk 00:14:53]} 3. f4 {[%clk 00:15:01]} Nc6
{[%clk 00:14:47]} 4. Nf3 {[%clk 00:15:02]} Bg7 {[%clk 00:14:34]} {[%emt
00:00:05]} 5. Bb5 {[%clk 00:14:53]} {[%emt 00:00:38]} Nd4 {[%clk 00:14:27]}
{[%emt 00:00:14]} 6. O-O {[%clk 00:14:50]} Nxb5 {[%clk 00:13:18]} {[%emt
00:00:47]} 7. Nxb5 {[%clk 00:14:51]} {[%emt 00:00:03]} d5 {[%clk 00:12:48]}
{[%emt 00:00:30]} 8. exd5 {[%clk 00:14:31]} {[%emt 00:00:39]} a6 {[%clk
00:12:19]} {[%emt 00:00:11]} 9. Nc3 {[%clk 00:14:32]} {[%emt 00:00:36]} Nf6
{[%clk 00:12:19]} 10. d3 {[%clk 00:13:55]} {[%emt 00:00:10]} O-O {[%clk
00:12:11]} {[%emt 00:00:23]} 11. Re1 {[%clk 00:13:41]} {[%emt 00:00:08]} Nxd5
{[%clk 00:11:12]} {[%emt 00:01:32]} 12. Nxd5 {[%clk 00:13:36]} Qxd5 {[%clk
00:11:12]} 13. Rxe7 {[%clk 00:11:09]} {[%emt 00:01:58]} Be6 {[%clk 00:10:47]}
{[%emt 00:00:27]} 14. Ng5 {[%clk 00:11:10]} {[%emt 00:00:30]} Bf6 {[%clk
00:10:32]} {[%emt 00:00:08]} 15. Rxe6 {[%clk 00:09:22]} {[%emt 00:01:31]} fxe6
{[%clk 00:10:25]} {[%emt 00:00:16]} 16. Ne4 {[%clk 00:08:55]} {[%emt 00:00:21]}
Bd4+ {[%clk 00:10:08]} {[%emt 00:00:42]} 17. Kh1 {[%clk 00:08:56]} Rad8 {[%clk
00:09:57]} 18. Bd2 {[%clk 00:08:42]} {[%emt 00:00:07]} Bxb2 {[%clk 00:09:30]}
{[%emt 00:00:38]} 19. Rb1 {[%clk 00:08:43]} Bg7 {[%clk 00:09:15]} {[%emt
00:00:11]} 20. Qg4 {[%clk 00:08:33]} {[%emt 00:00:14]} b5 {[%clk 00:08:21]}
{[%emt 00:00:57]} 21. Ng5 {[%clk 00:07:57]} {[%emt 00:00:33]} Qf5 {[%clk
00:07:42]} {[%emt 00:00:46]} 22. Qh4 {[%clk 00:07:50]} {[%emt 00:00:06]} h6
{[%clk 00:07:30]} {[%emt 00:00:13]} 23. Nf3 {[%clk 00:07:47]} {[%emt 00:00:12]}
Qf6 {[%clk 00:06:44]} {[%emt 00:00:39]} 24. Qg3 {[%clk 00:07:45]} {[%emt
00:00:16]} Rd5 {[%clk 00:06:24]} {[%emt 00:00:17]} 25. Re1 {[%clk 00:07:40]}
{[%emt 00:00:03]} c4 {[%clk 00:06:04]} {[%emt 00:00:20]} 26. Bb4 {[%clk
00:07:05]} {[%emt 00:00:36]} Rf7 {[%clk 00:05:47]} {[%emt 00:00:17]} 27. Ne5
{[%clk 00:06:40]} {[%emt 00:00:48]} Rxe5 {[%clk 00:05:34]} {[%emt 00:00:03]} 28.
Rxe5 {[%clk 00:06:37]} {[%emt 00:00:03]} Qxe5 {[%clk 00:05:27]} {[%emt
00:00:05]} 0-1

[Event "XVI Open Internacional Villa de Ibi"]
[Site "Ibi, Spain"]
[Date "2018.09.09"]
[Round "4.7"]
[White "Kovacevic, Slobodan"]
[Black "Cruz Lledo, Pablo"]
[Result "0-1"]
[TimeControl "15' + 2'' por jugada"]
[WhiteElo "2252"]
[BlackElo "2436"]

1. d4 {[%clk 00:15:03]} Nf6 {[%clk 00:15:00]} {[%emt 00:00:28]} 2. Nf3 {[%clk
00:15:03]} e6 {[%clk 00:14:57]} 3. Bf4 {[%clk 00:15:04]} {[%emt 00:00:10]} b6
{[%clk 00:14:57]} 4. Nbd2 {[%clk 00:15:04]} Bb7 {[%clk 00:14:57]} 5. e3 {[%clk
00:15:06]} d5 {[%clk 00:14:47]} {[%emt 00:00:04]} 6. Bd3 {[%clk 00:15:05]} Bd6
{[%clk 00:14:39]} {[%emt 00:00:04]} 7. c3 {[%clk 00:15:06]} Ne4 {[%clk
00:14:28]} {[%emt 00:00:11]} 8. Bxe4 {[%clk 00:14:12]} dxe4 {[%clk 00:14:28]}
{[%emt 00:01:23]} 9. Ng5 {[%clk 00:14:12]} Bxf4 {[%clk 00:13:16]} {[%emt
00:00:53]} 10. exf4 {[%clk 00:14:12]} Qf6 {[%clk 00:13:04]} {[%emt 00:00:15]}
11. Qg4 {[%clk 00:13:55]} Qf5 {[%clk 00:12:51]} {[%emt 00:00:36]} 12. Qg3
{[%clk 00:13:40]} {[%emt 00:00:18]} h6 {[%clk 00:12:42]} {[%emt 00:00:08]} 13.
Nh3 {[%clk 00:13:35]} {[%emt 00:00:20]} O-O {[%clk 00:12:28]} {[%emt 00:00:12]}
14. O-O {[%clk 00:13:33]} Nd7 {[%clk 00:12:24]} 15. Rfe1 {[%clk 00:13:33]}
{[%emt 00:00:11]} Nf6 {[%clk 00:12:25]} 16. Qe3 {[%clk 00:12:59]} {[%emt
00:00:27]} Rad8 {[%clk 00:12:03]} {[%emt 00:00:38]} 17. f3 {[%clk 00:12:59]}
exf3 {[%clk 00:12:00]} {[%emt 00:00:04]} 18. Nxf3 {[%clk 00:13:00]} c5 {[%clk
00:11:17]} {[%emt 00:00:40]} 19. dxc5 {[%clk 00:12:53]} {[%emt 00:00:27]} Bxf3
{[%clk 00:11:17]} 20. Qxf3 {[%clk 00:12:50]} Qxc5+ {[%clk 00:11:16]} 21. Qf2
{[%clk 00:11:51]} {[%emt 00:00:48]} Rd2 {[%clk 00:10:55]} {[%emt 00:00:24]} 22.
Qxc5 {[%clk 00:11:50]} {[%emt 00:00:30]} bxc5 {[%clk 00:10:55]} 23. Rab1 {[%clk
00:11:43]} {[%emt 00:00:04]} Rb8 {[%clk 00:10:54]} 24. Re5 {[%clk 00:11:38]}
Nd7 {[%clk 00:10:48]} {[%emt 00:00:03]} 25. Re4 {[%clk 00:11:33]} {[%emt
00:00:07]} Rbxb2 {[%clk 00:10:41]} {[%emt 00:00:08]} 26. Rxb2 {[%clk 00:11:34]}
{[%emt 00:00:08]} Rxb2 {[%clk 00:10:42]} 27. Ra4 {[%clk 00:11:35]} Nf6 {[%clk
00:09:54]} {[%emt 00:00:43]} 28. Rxa7 {[%clk 00:10:51]} {[%emt 00:00:45]} Ne4
{[%clk 00:09:55]} {[%emt 00:00:19]} 29. Kf1 {[%clk 00:10:37]} {[%emt 00:00:14]}
Nxc3 {[%clk 00:09:49]} 30. a4 {[%clk 00:10:33]} Nd5 {[%clk 00:09:21]} {[%emt
00:00:28]} 31. a5 {[%clk 00:10:14]} {[%emt 00:00:44]} Ne3+ {[%clk 00:09:16]}
{[%emt 00:00:04]} 32. Ke1 {[%clk 00:10:15]} Nxg2+ {[%clk 00:09:14]} 33. Kd1
{[%clk 00:10:13]} Ne3+ {[%clk 00:09:15]} 34. Kc1 {[%clk 00:10:14]} Rxh2 {[%clk
00:09:10]} {[%emt 00:00:04]} 35. Ng1 {[%clk 00:08:58]} {[%emt 00:01:11]} Rh1
{[%clk 00:09:04]} {[%emt 00:00:12]} 36. Kd2 {[%clk 00:09:00]} {[%emt 00:00:04]}
Nc4+ {[%clk 00:08:53]} {[%emt 00:00:06]} 37. Kc3 {[%clk 00:08:57]} {[%emt
00:00:15]} Nxa5 {[%clk 00:08:54]} 38. Ne2 {[%clk 00:08:39]} {[%emt 00:00:14]}
Nc6 {[%clk 00:08:49]} {[%emt 00:00:08]} 39. Rc7 {[%clk 00:08:28]} {[%emt
00:00:11]} Nd4 {[%clk 00:08:50]} {[%emt 00:00:04]} 40. Nxd4 {[%clk 00:08:25]}
{[%emt 00:00:04]} cxd4+ {[%clk 00:08:51]} 41. Kxd4 {[%clk 00:08:26]} {[%emt
00:00:04]} Re1 {[%clk 00:08:43]} {[%emt 00:00:07]} 42. Rc8+ {[%clk 00:08:24]}
{[%emt 00:00:07]} Kh7 {[%clk 00:08:43]} 43. Rc7 {[%clk 00:08:22]} {[%emt
00:00:03]} Kg6 {[%clk 00:08:44]} 0-1

[Event "XVI Open Internacional Villa de Ibi"]
[Site "Ibi, Spain"]
[Date "2018.09.09"]
[Round "5.1"]
[White "Plaskett, H James"]
[Black "Serarols Mabras, Bernat"]
[Result "1-0"]
[TimeControl "15' + 2'' por jugada"]
[WhiteElo "2450"]
[BlackElo "2367"]

1. c4 {[%clk 00:12:23]} {[%emt 00:02:40]} e6 {[%clk 00:15:02]} {[%emt
00:00:09]} 2. Nc3 {[%clk 00:12:23]} d5 {[%clk 00:15:03]} {[%emt 00:00:03]} 3.
d4 {[%clk 00:12:23]} Bb4 {[%clk 00:15:03]} 4. Nf3 {[%clk 00:12:20]} {[%emt
00:00:05]} Nf6 {[%clk 00:15:03]} {[%emt 00:00:04]} 5. g3 {[%clk 00:12:16]}
{[%emt 00:00:04]} O-O {[%clk 00:14:20]} {[%emt 00:00:41]} 6. Bg2 {[%clk
00:12:17]} {[%emt 00:00:08]} dxc4 {[%clk 00:14:19]} {[%emt 00:00:07]} 7. O-O
{[%clk 00:12:17]} Nc6 {[%clk 00:14:20]} 8. Bg5 {[%clk 00:11:53]} {[%emt
00:00:22]} h6 {[%clk 00:14:16]} {[%emt 00:00:25]} 9. Bxf6 {[%clk 00:11:37]}
Qxf6 {[%clk 00:14:14]} {[%emt 00:00:03]} 10. e3 {[%clk 00:11:32]} {[%emt
00:00:05]} Bd7 {[%clk 00:12:21]} {[%emt 00:02:05]} 11. Nd2 {[%clk 00:09:33]}
{[%emt 00:01:53]} Bxc3 {[%clk 00:10:57]} {[%emt 00:01:25]} 12. bxc3 {[%clk
00:09:14]} {[%emt 00:00:27]} b5 {[%clk 00:10:52]} {[%emt 00:00:09]} 13. a4
{[%clk 00:08:54]} {[%emt 00:00:14]} a6 {[%clk 00:10:46]} {[%emt 00:00:08]} 14.
Ne4 {[%clk 00:08:44]} {[%emt 00:00:10]} Qe7 {[%clk 00:10:38]} {[%emt 00:00:10]}
15. Nc5 {[%clk 00:08:44]} {[%emt 00:00:21]} Ra7 {[%clk 00:09:06]} {[%emt
00:01:18]} 16. Nxd7 {[%clk 00:07:30]} {[%emt 00:01:13]} Qxd7 {[%clk 00:09:04]}
{[%emt 00:00:29]} 17. axb5 {[%clk 00:07:30]} Nb8 {[%clk 00:08:34]} {[%emt
00:00:09]} 18. Qa4 {[%clk 00:06:46]} {[%emt 00:00:50]} Rc8 {[%clk 00:07:03]}
{[%emt 00:01:29]} 19. Rfb1 {[%clk 00:06:19]} {[%emt 00:00:39]} g6 {[%clk
00:05:48]} {[%emt 00:01:11]} 20. Qa3 {[%clk 00:05:42]} {[%emt 00:00:36]} Qd6
{[%clk 00:05:10]} {[%emt 00:00:41]} 21. b6 {[%clk 00:05:26]} {[%emt 00:00:19]}
1-0

[Event "XVI Open Internacional Villa de Ibi"]
[Site "Ibi, Spain"]
[Date "2018.09.09"]
[Round "5.2"]
[White "Granero Roca, Antonio"]
[Black "Sos Andreu, Eric"]
[Result "1-0"]
[TimeControl "15' + 2'' por jugada"]
[WhiteElo "2370"]
[BlackElo "2332"]

1. Nf3 {[%clk 00:15:02]} {[%emt 00:00:05]} c5 {[%clk 00:15:02]} {[%emt
00:00:04]} 2. g3 {[%clk 00:15:03]} g6 {[%clk 00:15:00]} {[%emt 00:00:04]} 3.
Bg2 {[%clk 00:15:03]} {[%emt 00:00:05]} Bg7 {[%clk 00:15:00]} 4. c4 {[%clk
00:14:58]} {[%emt 00:00:06]} Nc6 {[%clk 00:14:59]} {[%emt 00:00:04]} 5. O-O
{[%clk 00:14:57]} {[%emt 00:00:22]} e6 {[%clk 00:14:57]} 6. Nc3 {[%clk
00:14:51]} Nge7 {[%clk 00:14:56]} 7. d3 {[%clk 00:14:51]} O-O {[%clk 00:14:52]}
{[%emt 00:00:04]} 8. Bg5 {[%clk 00:14:43]} {[%emt 00:00:07]} h6 {[%clk
00:14:49]} {[%emt 00:00:05]} 9. Bd2 {[%clk 00:14:41]} {[%emt 00:00:08]} d5
{[%clk 00:14:37]} {[%emt 00:00:09]} 10. a3 {[%clk 00:14:14]} {[%emt 00:00:29]}
b6 {[%clk 00:13:29]} {[%emt 00:01:11]} 11. Rb1 {[%clk 00:14:10]} Bb7 {[%clk
00:12:56]} {[%emt 00:00:45]} 12. b4 cxb4 {[%clk 00:12:55]} 13. axb4 {[%clk
00:14:07]} dxc4 {[%clk 00:12:55]} 14. dxc4 {[%clk 00:14:08]} Rc8 {[%clk
00:12:55]} {[%emt 00:00:04]} 15. Nb5 {[%clk 00:12:54]} {[%emt 00:01:13]} a6
{[%clk 00:11:21]} {[%emt 00:01:38]} 16. Na3 {[%clk 00:12:54]} {[%emt 00:00:05]}
Nf5 {[%clk 00:11:22]} 17. e3 {[%clk 00:12:11]} {[%emt 00:00:49]} Qe7 {[%clk
00:11:02]} {[%emt 00:00:23]} 18. Qb3 {[%clk 00:12:09]} Rfd8 {[%clk 00:10:05]}
{[%emt 00:00:54]} 19. Rfd1 {[%clk 00:12:09]} Rd7 {[%clk 00:08:52]} {[%emt
00:01:16]} 20. Be1 {[%clk 00:11:57]} {[%emt 00:00:14]} Rcd8 {[%clk 00:08:34]}
{[%emt 00:00:21]} 21. Rxd7 {[%clk 00:11:57]} {[%emt 00:00:11]} Rxd7 {[%clk
00:08:31]} 22. b5 {[%clk 00:11:50]} {[%emt 00:00:05]} axb5 {[%clk 00:08:17]}
{[%emt 00:00:16]} 23. cxb5 {[%clk 00:11:50]} {[%emt 00:00:06]} Na7 {[%clk
00:07:15]} {[%emt 00:01:04]} 24. Bb4 {[%clk 00:11:38]} {[%emt 00:00:11]} Qd8
{[%clk 00:07:14]} {[%emt 00:00:06]} 25. Ne1 {[%clk 00:11:02]} {[%emt 00:00:35]}
Bxg2 {[%clk 00:07:03]} {[%emt 00:00:13]} 26. Kxg2 {[%clk 00:11:02]} Qa8+ {[%clk
00:05:42]} {[%emt 00:01:24]} 27. Kg1 {[%clk 00:11:02]} {[%emt 00:00:07]} Qe4
{[%clk 00:05:25]} {[%emt 00:00:14]} 28. Rc1 {[%clk 00:10:54]} {[%emt 00:00:10]}
h5 {[%clk 00:05:17]} {[%emt 00:00:10]} 29. Qc4 {[%clk 00:10:27]} {[%emt
00:00:29]} Qb7 {[%clk 00:04:10]} {[%emt 00:01:09]} 30. h4 {[%clk 00:09:17]}
{[%emt 00:01:12]} Be5 {[%clk 00:03:55]} {[%emt 00:00:17]} 31. Ng2 {[%clk
00:08:48]} {[%emt 00:00:36]} Qf3 {[%clk 00:01:35]} {[%emt 00:02:17]} 32. Ne1
{[%clk 00:08:09]} {[%emt 00:00:53]} Qb7 {[%clk 00:01:32]} 33. Ng2 {[%clk
00:07:46]} {[%emt 00:00:25]} Rc7 {[%clk 00:01:12]} {[%emt 00:00:20]} 34. Qf1
{[%clk 00:07:47]} Rxc1 {[%clk 00:01:12]} 35. Qxc1 {[%clk 00:07:46]} {[%emt
00:00:08]} Qd5 {[%clk 00:01:11]} 36. Qc2 {[%clk 00:06:49]} {[%emt 00:01:02]}
Nd6 {[%clk 00:00:56]} {[%emt 00:00:10]} 37. Bxd6 {[%clk 00:06:37]} {[%emt
00:00:13]} Bxd6 {[%clk 00:00:53]} {[%emt 00:00:06]} 38. Nc4 {[%clk 00:06:35]}
{[%emt 00:00:07]} Bc5 {[%clk 00:00:10]} {[%emt 00:00:42]} 39. Qa4 {[%clk
00:06:34]} {[%emt 00:00:06]} Qd7 {[%clk 00:00:09]} {[%emt 00:00:05]} 40. Ne5
{[%clk 00:06:20]} {[%emt 00:00:11]} Qc7 {[%clk 00:00:10]} 41. Nc6 {[%clk
00:06:14]} {[%emt 00:00:11]} Nc8 {[%clk 00:00:10]} 42. Nf4 {[%clk 00:06:03]}
{[%emt 00:00:12]} Kg7 {[%clk 00:00:09]} {[%emt 00:00:05]} 43. Nd3 {[%clk
00:06:03]} {[%emt 00:00:05]} Bf8 {[%clk 00:00:07]} {[%emt 00:00:05]} 44. Nde5
{[%clk 00:05:34]} {[%emt 00:00:31]} Nd6 {[%clk 00:00:06]} 45. Nc4 {[%clk
00:05:17]} {[%emt 00:00:17]} Nxc4 {[%clk 00:00:04]} {[%emt 00:00:05]} 46. Qxc4
{[%clk 00:05:18]} Bc5 {[%clk 00:00:05]} {[%emt 00:00:04]} 47. Qc3+ {[%clk
00:05:18]} Kh7 {[%clk 00:00:04]} {[%emt 00:00:04]} 48. Qf6 {[%clk 00:05:13]}
{[%emt 00:00:05]} Kg8 {[%clk 00:00:04]} 49. Kg2 {[%clk 00:04:56]} {[%emt
00:00:24]} Qd6 {[%clk 00:00:05]} 50. Ne5 {[%clk 00:04:38]} {[%emt 00:00:25]}
Qe7 {[%clk 00:00:06]} 51. Qf3 {[%clk 00:04:25]} {[%emt 00:00:08]} Bd6 {[%clk
00:00:06]} {[%emt 00:00:09]} 52. Nc4 {[%clk 00:04:19]} {[%emt 00:00:05]} Bc5
{[%clk 00:00:07]} 53. Qc6 {[%clk 00:04:18]} Qd8 {[%clk 00:00:08]} {[%emt
00:00:05]} 54. Ne5 {[%clk 00:03:54]} {[%emt 00:00:25]} Kg7 {[%clk 00:00:06]}
{[%emt 00:00:04]} 55. Nd7 {[%clk 00:03:52]} {[%emt 00:00:04]} Kg8 {[%clk
00:00:04]} {[%emt 00:00:05]} 56. Nxc5 {[%clk 00:03:48]} {[%emt 00:00:05]} bxc5
{[%clk 00:00:04]} 57. Qxc5 {[%emt 00:00:14]} 1-0